fUSD/lending_fUSD_20240616
["ID","MTS","AMOUNT","RATE_DAILY","PERIOD"]
[329613890,1718507454251,-500.0,0.00021917,2]
[329613891,1718507454301,-500.0,0.00021917,2]
[329613892,1718507454312,-500.0,0.00021917,2]
[329613893,1718507454327,-500.0,0.00021917,2]
[329613894,1718507454349,-733.8,0.00021917,2]
[329613895,1718507454364,-500.0,0.00021917,2]
[329613896,1718507454379,-500.0,0.00021917,2]
[329613897,1718507454398,-500.0,0.00021917,2]
[329613898,1718507454413,-500.0,0.00021917,2]
[329613899,1718507454426,-758.0,0.00021917,2]
[329613900,1718507454443,-500.0,0.00021917,2]
[329613901,1718507454454,-707.9,0.00021917,2]
[329613902,1718507454465,-500.0,0.00021917,2]
[329613903,1718507454477,-862.38,0.00021917,2]
[329613904,1718507454490,-500.0,0.00021917,2]
[329613905,1718507454501,-746.07,0.00021917,2]
[329613906,1718507454513,-500.0,0.00021917,2]
[329613907,1718507454526,-500.0,0.00021917,2]
[329613908,1718507454537,-500.0,0.00021917,2]
[329613909,1718507454553,-810.1,0.00021917,2]
[329613910,1718507454574,-500.0,0.00021917,2]
[329613911,1718507454588,-500.0,0.00021917,2]
[329613912,1718507454604,-579.55,0.00021917,2]
[329613913,1718507454637,-500.0,0.00021917,2]
[329613914,1718507454652,-500.0,0.00021917,2]
[329613915,1718507454664,-500.0,0.00021917,2]
[329613916,1718507454696,-500.0,0.00021917,2]
[329613917,1718507454712,-500.0,0.00021917,2]
[329613918,1718507454731,-521.37,0.00021917,2]
[329613919,1718507454743,-500.0,0.00021917,2]
[329613920,1718507454758,-500.0,0.00021917,2]
[329613921,1718507454769,-500.0,0.00021917,2]
[329613922,1718507454782,-536.44,0.00021917,2]
[329613923,1718507454793,-500.0,0.00021917,2]
[329613924,1718507454814,-500.0,0.00021917,2]
[329613925,1718507454825,-500.0,0.00021917,2]
[329613926,1718507454837,-500.0,0.00021917,2]
[329613927,1718507454847,-500.0,0.00021917,2]
[329613928,1718507454868,-500.0,0.00021917,2]
[329613929,1718507454901,-500.0,0.00021917,2]
[329613930,1718507454913,-500.0,0.00021917,2]
[329613931,1718507454923,-510.44,0.00021917,2]
[329613932,1718507454946,-500.0,0.00021917,2]
[329613933,1718507454976,-500.0,0.00021917,2]
[329613934,1718507454998,-500.0,0.00021917,2]
[329613935,1718507455015,-500.0,0.00021917,2]
[329613936,1718507455039,-532.0481512,0.00021917,2]
[329613937,1718507455078,-735.53,0.00021917,2]
[329613938,1718507455108,-500.0,0.00021917,2]
[329613939,1718507455121,-500.0,0.00021917,2]
[329613940,1718507455137,-500.0,0.00021917,2]
[329613941,1718507455148,-572.07251593,0.00021917,2]
[329613942,1718507455160,-500.0,0.00021917,2]
[329613943,1718507455170,-500.0,0.00021917,2]
[329613944,1718507455199,-1068.7,0.00021917,2]
[329613945,1718507455224,-500.0,0.00021917,2]
[329613946,1718507455237,-500.0,0.00021917,2]
[329613947,1718507455298,-500.0,0.00021917,2]
[329613948,1718507455322,-500.0,0.00021917,2]
[329613949,1718507455338,-500.0,0.00021917,2]
[329613950,1718507455353,-500.0,0.00021917,2]
[329613951,1718507455368,-889.19,0.00021917,2]
[329613952,1718507455380,-500.0,0.00021917,2]
[329613953,1718507455393,-262.37394909,0.00021917,2]
[329613954,1718507455405,-515.50592035,0.00021917,2]
[329613955,1718507455417,-266.37090861,0.00021917,2]
[329613956,1718507455431,-500.0,0.00021917,2]
[329613957,1718507455442,-500.0,0.00021917,2]
[329613958,1718507455454,-500.0,0.00021917,2]
[329613959,1718507455465,-531.90755208,0.00021917,2]
[329613960,1718507455476,-500.0,0.00021917,2]
[329613961,1718507455494,-500.0,0.00021917,2]
[329613962,1718507455507,-200.0,0.00021917,2]
[329613963,1718507455518,-500.0,0.00021917,2]
[329613964,1718507455533,-786.13,0.00021917,2]
[329613965,1718507455559,-500.0,0.00021917,2]
[329613966,1718507455589,-500.0,0.00021917,2]
[329613967,1718507455600,-500.0,0.00021917,2]
[329613968,1718507455620,-500.0,0.00021917,2]
[329613969,1718507455637,-500.0,0.00021917,2]
[329613970,1718507455664,-500.0,0.00021917,2]
[329613971,1718507455676,-1109.64,0.00021917,2]
[329613972,1718507455691,-500.0,0.00021917,2]
[329613973,1718507455704,-500.0,0.00021917,2]
[329613974,1718507455715,-500.0,0.00021917,2]
[329613975,1718507455746,-500.0,0.00021917,2]
[329613976,1718507455770,-500.0,0.00021917,2]
[329613977,1718507455805,-500.0,0.00021917,2]
[329613978,1718507455856,-500.0,0.00021917,2]
[329613979,1718507455882,-500.0,0.00021917,2]
[329613980,1718507455920,-497.98152401,0.00021917,2]
[329613981,1718507455931,-543.3885082,0.00021917,2]
[329613982,1718507455945,-744.63,0.00021917,2]
[329613983,1718507455959,-500.0,0.00021917,2]
[329613984,1718507456006,-500.0,0.00021917,2]
[329613985,1718507456023,-500.0,0.00021917,2]
[329613986,1718507456033,-500.0,0.00021917,2]
[329613987,1718507456056,-700.49,0.00021917,2]
[329613988,1718507456068,-500.0,0.00021917,2]
[329613989,1718507456082,-500.0,0.00021917,2]
[329613990,1718507456094,-500.0,0.00021917,2]
[329613991,1718507456107,-554.05,0.00021917,2]
[329613992,1718507456118,-500.0,0.00021917,2]
[329613993,1718507456136,-538.46,0.00021917,2]
[329613994,1718507456148,-500.0,0.00021917,2]
[329613995,1718507456184,-500.0,0.00021917,2]
[329613996,1718507456197,-500.0,0.00021917,2]
[329613997,1718507456212,-500.0,0.00021917,2]
[329613998,1718507456231,-500.0,0.00021917,2]
[329613999,1718507456247,-685.07,0.00021917,2]
[329614000,1718507456261,-500.0,0.00021917,2]
[329614001,1718507456284,-500.0,0.00021917,2]
[329614002,1718507456295,-500.0,0.00021917,2]
[329614003,1718507456311,-500.0,0.00021917,2]
[329614004,1718507456360,-500.0,0.00021917,2]
[329614005,1718507456371,-500.0,0.00021917,2]
[329614006,1718507456387,-500.0,0.00021917,2]
[329614007,1718507456408,-500.0,0.00021917,2]
[329614008,1718507456430,-500.0,0.00021917,2]
[329614009,1718507456478,-500.0,0.00021917,2]
[329614010,1718507456493,-500.0,0.00021917,2]
[329614011,1718507456505,-500.0,0.00021917,2]
[329614012,1718507456524,-602.16,0.00021917,2]
[329614013,1718507456569,-661.56,0.00021917,2]
[329614014,1718507456586,-693.16,0.00021917,2]
[329614015,1718507456606,-557.74,0.00021917,2]
[329614016,1718507456617,-500.0,0.00021917,2]
[329614017,1718507456648,-500.0,0.00021917,2]
[329614018,1718507456685,-542.15369529,0.00021917,2]
[329614019,1718507456714,-500.0,0.00021917,2]
[329614020,1718507456732,-801.63,0.00021917,2]
[329614021,1718507456744,-500.0,0.00021917,2]
[329614022,1718507456757,-500.0,0.00021917,2]
[329614023,1718507456782,-500.0,0.00021917,2]
[329614024,1718507456854,-500.0,0.00021917,2]
[329614025,1718507456873,-500.0,0.00021917,2]
[329614026,1718507456887,-500.0,0.00021917,2]
[329614027,1718507456931,-1167.64,0.00021917,2]
[329614028,1718507456950,-1206.26,0.00021917,2]
[329614029,1718507456962,-500.0,0.00021917,2]
[329614030,1718507456973,-500.0,0.00021917,2]
[329614031,1718507457012,-500.0,0.00021917,2]
[329614032,1718507457041,-514.95613813,0.00021917,2]
[329614033,1718507457076,-500.0,0.00021917,2]
[329614034,1718507457108,-561.25991012,0.00021917,2]
[329614035,1718507457120,-500.0,0.00021917,2]
[329614036,1718507457163,-500.0,0.00021917,2]
[329614037,1718507457186,-500.0,0.00021917,2]
[329614038,1718507457204,-515.15224146,0.00021917,2]
[329614039,1718507457216,-500.0,0.00021917,2]
[329614040,1718507457228,-715.69,0.00021917,2]
[329614041,1718507457253,-500.0,0.00021917,2]
[329614042,1718507457271,-716.31,0.00021917,2]
[329614043,1718507457284,-500.0,0.00021917,2]
[329614044,1718507457305,-500.0,0.00021917,2]
[329614045,1718507457328,-500.0,0.00021917,2]
[329614046,1718507457340,-500.0,0.00021917,2]
[329614047,1718507457372,-500.0,0.00021917,2]
[329614048,1718507457385,-500.0,0.00021917,2]
[329614049,1718507457415,-500.0,0.00021917,2]
[329614050,1718507457445,-500.0,0.00021917,2]
[329614051,1718507457457,-500.0,0.00021917,2]
[329614052,1718507457469,-500.0,0.00021917,2]
[329614053,1718507457483,-530.46795083,0.00021917,2]
[329614054,1718507457497,-647.13,0.00021917,2]
[329614055,1718507457518,-500.0,0.00021917,2]
[329614056,1718507457530,-434.84607957,0.00021917,2]
[329614057,1718507457542,-500.0,0.00021917,2]
[329614058,1718507457557,-539.58535888,0.00021917,2]
[329614059,1718507457581,-500.0,0.00021917,2]
[329614060,1718507457591,-1978.42,0.00021917,2]
[329614061,1718507457611,-500.0,0.00021917,2]
[329614062,1718507457629,-500.0,0.00021917,2]
[329614063,1718507457649,-715.95,0.00021917,2]
[329614064,1718507457676,-500.0,0.00021917,2]
[329614065,1718507457699,-500.0,0.00021917,2]
[329614066,1718507457716,-218.9682714,0.00021917,2]
[329614067,1718507457750,-500.0,0.00021917,2]
[329614068,1718507457797,-500.0,0.00021917,2]
[329614069,1718507457811,-500.0,0.00021917,2]
[329614070,1718507457864,-500.0,0.00021917,2]
[329614071,1718507457877,-642.86,0.00021917,2]
[329614072,1718507457889,-548.37,0.00021917,2]
[329614073,1718507457904,-500.0,0.00021917,2]
[329614074,1718507457915,-500.0,0.00021917,2]
[329614075,1718507457929,-500.0,0.00021917,2]
[329614076,1718507457945,-500.0,0.00021917,2]
[329614077,1718507457956,-500.0,0.00021917,2]
[329614078,1718507457969,-500.0,0.00021917,2]
[329614079,1718507457983,-500.0,0.00021917,2]
[329614080,1718507457994,-500.0,0.00021917,2]
[329614081,1718507458029,-500.0,0.00021917,2]
[329614082,1718507458061,-521.85626291,0.00021917,2]
[329614083,1718507458095,-500.0,0.00021917,2]
[329614084,1718507458110,-500.0,0.00021917,2]
[329614085,1718507458122,-508.76075799,0.00021917,2]
[329614086,1718507458145,-500.0,0.00021917,2]
[329614087,1718507458178,-500.0,0.00021917,2]
[329614088,1718507458191,-500.0,0.00021917,2]
[329614089,1718507458205,-500.0,0.00021917,2]
[329614090,1718507458218,-500.0,0.00021917,2]
[329614091,1718507458248,-612.98,0.00021917,2]
[329614092,1718507458263,-500.0,0.00021917,2]
[329614093,1718507458274,-500.0,0.00021917,2]
[329614094,1718507458294,-219.81129481,0.00021917,2]
[329614095,1718507458309,-500.0,0.00021917,2]
[329614096,1718507458329,-500.0,0.00021917,2]
[329614097,1718507458344,-500.0,0.00021917,2]
[329614098,1718507458362,-621.27,0.00021917,2]
[329614099,1718507458386,-500.0,0.00021917,2]
[329614100,1718507458412,-404.23,0.00021917,2]
[329614101,1718507458423,-500.0,0.00021917,2]
[329614102,1718507458436,-1053.9,0.00021917,2]
[329614103,1718507458463,-500.0,0.00021917,2]
[329614104,1718507458480,-500.0,0.00021917,2]
[329614105,1718507458524,-500.0,0.00021917,2]
[329614106,1718507458554,-500.0,0.00021917,2]
[329614107,1718507458574,-336.30048232,0.00021917,2]
[329614108,1718507459407,-368.59145831,0.00021917,2]
[329614109,1718507459430,-29.07805937,0.00021917,2]
[329614110,1718507459441,-500.0,0.00021917,2]
[329614111,1718507459453,-500.0,0.00021917,2]
[329614112,1718507459468,-590.2,0.00021917,2]
[329614113,1718507459483,-500.0,0.00021917,2]
[329614114,1718507459534,-500.0,0.00021917,2]
[329614115,1718507459547,-500.0,0.00021917,2]
[329614116,1718507459568,-500.0,0.00021917,2]
[329614117,1718507459584,-561.1,0.00021917,2]
[329614118,1718507459608,-500.0,0.00021917,2]
[329614119,1718507459620,-428.02940712,0.00021917,2]
[329614120,1718507459640,-500.0,0.00021917,2]
[329614121,1718507459652,-500.0,0.00021917,2]
[329614122,1718507459665,-500.0,0.00021917,2]
[329614123,1718507459677,-500.0,0.00021917,2]
[329614124,1718507459694,-500.0,0.00021917,2]
[329614125,1718507459715,-500.0,0.00021917,2]
[329614126,1718507459727,-500.0,0.00021917,2]
[329614127,1718507459738,-500.0,0.00021917,2]
[329614128,1718507459757,-513.60402908,0.00021917,2]
[329614129,1718507459808,-500.0,0.00021917,2]
[329614130,1718507459823,-500.0,0.00021917,2]
[329614131,1718507459834,-758.2,0.00021917,2]
[329614132,1718507459859,-500.0,0.00021917,2]
[329614133,1718507459874,-511.25499474,0.00021917,2]
[329614134,1718507459896,-696.22,0.00021917,2]
[329614135,1718507459909,-523.34,0.00021917,2]
[329614136,1718507459925,-500.0,0.00021917,2]
[329614137,1718507459947,-526.59174396,0.00021917,2]
[329614138,1718507459958,-500.0,0.00021917,2]
[329614139,1718507459974,-500.0,0.00021917,2]
[329614140,1718507459995,-547.440374,0.00021917,2]
[329614141,1718507460007,-500.0,0.00021917,2]
[329614142,1718507460018,-500.0,0.00021917,2]
[329614143,1718507460037,-500.0,0.00021917,2]
[329614144,1718507460054,-500.0,0.00021917,2]
[329614145,1718507460065,-500.0,0.00021917,2]
[329614146,1718507460081,-500.0,0.00021917,2]
[329614147,1718507460092,-500.0,0.00021917,2]
[329614148,1718507460104,-500.0,0.00021917,2]
[329614149,1718507460114,-500.0,0.00021917,2]
[329614150,1718507460129,-512.38,0.00021917,2]
[329614151,1718507460141,-500.0,0.00021917,2]
[329614152,1718507460154,-500.0,0.00021917,2]
[329614153,1718507460164,-500.0,0.00021917,2]
[329614154,1718507460175,-500.0,0.00021917,2]
[329614155,1718507460185,-579.52,0.00021917,2]
[329614156,1718507460195,-605.35,0.00021917,2]
[329614157,1718507460206,-500.0,0.00021917,2]
[329614158,1718507460217,-500.0,0.00021917,2]
[329614159,1718507460228,-500.0,0.00021917,2]
[329614160,1718507460255,-500.0,0.00021917,2]
[329614161,1718507460268,-500.0,0.00021917,2]
[329614162,1718507460282,-500.0,0.00021917,2]
[329614163,1718507460300,-500.0,0.00021917,2]
[329614164,1718507460317,-526.53235766,0.00021917,2]
[329614165,1718507460329,-957.63,0.00021917,2]
[329614166,1718507460344,-545.46045509,0.00021917,2]
[329614167,1718507460355,-500.0,0.00021917,2]
[329614168,1718507460381,-500.0,0.00021917,2]
[329614169,1718507460403,-500.0,0.00021917,2]
[329614170,1718507460418,-500.0,0.00021917,2]
[329614171,1718507460444,-799.48,0.00021917,2]
[329614172,1718507460456,-500.0,0.00021917,2]
[329614173,1718507460477,-500.0,0.00021917,2]
[329614174,1718507460487,-500.0,0.00021917,2]
[329614175,1718507460503,-1802.8,0.00021917,2]
[329614176,1718507460516,-500.0,0.00021917,2]
[329614177,1718507460528,-500.0,0.00021917,2]
[329614178,1718507460546,-500.0,0.00021917,2]
[329614179,1718507460558,-500.0,0.00021917,2]
[329614180,1718507460569,-500.0,0.00021917,2]
[329614181,1718507460580,-500.0,0.00021917,2]
[329614182,1718507460594,-500.0,0.00021917,2]
[329614183,1718507460605,-1342.76,0.00021917,2]
[329614184,1718507460618,-500.0,0.00021917,2]
[329614185,1718507460629,-500.0,0.00021917,2]
[329614186,1718507460645,-641.6,0.00021917,2]
[329614187,1718507460657,-500.0,0.00021917,2]
[329614188,1718507460669,-500.0,0.00021917,2]
[329614189,1718507460703,-12869.21,0.00021917,2]
[329614190,1718507460721,-500.0,0.00021917,2]
[329614191,1718507460732,-527.43038532,0.00021917,2]
[329614192,1718507460747,-500.0,0.00021917,2]
[329614193,1718507460759,-500.0,0.00021917,2]
[329614194,1718507460770,-1432.06,0.00021917,2]
[329614195,1718507460796,-500.0,0.00021917,2]
[329614196,1718507460823,-543.47,0.00021917,2]
[329614197,1718507460834,-500.0,0.00021917,2]
[329614198,1718507460847,-523.29552472,0.00021917,2]
[329614199,1718507460860,-1222.28,0.00021917,2]
[329614200,1718507460873,-766.37,0.00021917,2]
[329614201,1718507460885,-500.0,0.00021917,2]
[329614202,1718507460898,-549.68,0.00021917,2]
[329614203,1718507460920,-500.0,0.00021917,2]
[329614204,1718507460942,-500.0,0.00021917,2]
[329614205,1718507460957,-500.0,0.00021917,2]
[329614206,1718507460986,-500.0,0.00021917,2]
[329614207,1718507460998,-500.0,0.00021917,2]
[329614208,1718507461011,-500.0,0.00021917,2]
[329614209,1718507461026,-500.0,0.00021917,2]
[329614210,1718507461056,-500.0,0.00021917,2]
[329614211,1718507461101,-500.0,0.00021917,2]
[329614212,1718507461116,-228.65505796,0.00021917,2]
[329614213,1718507461146,-562.49,0.00021917,2]
[329614214,1718507461204,-500.0,0.00021917,2]
[329614215,1718507461231,-1609.92,0.00021917,2]
[329614216,1718507461257,-507.79995221,0.00021917,2]
[329614217,1718507461301,-500.0,0.00021917,2]
[329614218,1718507461315,-500.0,0.00021917,2]
[329614219,1718507461342,-500.0,0.00021917,2]
[329614220,1718507461373,-500.0,0.00021917,2]
[329614221,1718507461400,-500.0,0.00021917,2]
[329614222,1718507461415,-500.0,0.00021917,2]
[329614223,1718507461427,-500.0,0.00021917,2]
[329614224,1718507461440,-500.0,0.00021917,2]
[329614225,1718507461454,-752.89,0.00021917,2]
[329614226,1718507461467,-500.0,0.00021917,2]
[329614227,1718507461480,-639.94,0.00021917,2]
[329614228,1718507461529,-500.0,0.00021917,2]
[329614229,1718507461541,-500.0,0.00021917,2]
[329614230,1718507461553,-500.0,0.00021917,2]
[329614231,1718507461576,-500.0,0.00021917,2]
[329614232,1718507461588,-10295.0,0.00021917,2]
[329614233,1718507461613,-500.0,0.00021917,2]
[329614234,1718507461624,-500.0,0.00021917,2]
[329614235,1718507461635,-500.0,0.00021917,2]
[329614236,1718507461651,-839.51,0.00021917,2]
[329614237,1718507461663,-500.0,0.00021917,2]
[329614238,1718507461675,-21311.76,0.00021917,2]
[329614239,1718507461694,-1594.71,0.00021917,2]
[329614240,1718507461708,-1792.89,0.00021917,2]
[329614241,1718507461728,-729.99,0.00021917,2]
[329614242,1718507461739,-500.0,0.00021917,2]
[329614243,1718507461766,-1109.51,0.00021917,2]
[329614244,1718507461797,-500.0,0.00021917,2]
[329614245,1718507461829,-500.0,0.00021917,2]
[329614246,1718507461845,-500.0,0.00021917,2]
[329614247,1718507461877,-500.0,0.00021917,2]
[329614248,1718507461896,-500.0,0.00021917,2]
[329614249,1718507461916,-952.31,0.00021917,2]
[329614250,1718507461927,-500.0,0.00021917,2]
[329614251,1718507461948,-500.0,0.00021917,2]
[329614252,1718507461995,-500.0,0.00021917,2]
[329614253,1718507462016,-1262.31,0.00021917,2]
[329614254,1718507462034,-500.0,0.00021917,2]
[329614255,1718507462053,-500.0,0.00021917,2]
[329614256,1718507462065,-1779.71,0.00021917,2]
[329614257,1718507462096,-500.0,0.00021917,2]
[329614258,1718507462124,-924.49,0.00021917,2]
[329614259,1718507462139,-845.7,0.00021917,2]
[329614260,1718507462156,-1725.07,0.00021917,2]
[329614261,1718507462168,-399.7017348,0.00021917,2]
[329614262,1718507462197,-268.1782652,0.00021917,2]
[329614263,1718507462211,-500.0,0.00021917,2]
[329614264,1718507462240,-500.0,0.00021917,2]
[329614265,1718507462258,-500.0,0.00021917,2]
[329614266,1718507462284,-505.55834818,0.00021917,2]
[329614267,1718507462297,-500.0,0.00021917,2]
[329614268,1718507462328,-500.0,0.00021917,2]
[329614269,1718507462340,-2099.66,0.00021917,2]
[329614270,1718507462355,-1746.60338662,0.00021917,2]
[329614271,1718507462863,-9782.69661338,0.00021917,2]
[329614272,1718507462884,-500.0,0.00021917,2]
[329614273,1718507462917,-696.75,0.00021917,2]
[329614274,1718507462956,-500.0,0.00021917,2]
[329614275,1718507462968,-1134.57,0.00021917,2]
[329614276,1718507462980,-500.0,0.00021917,2]
[329614277,1718507462992,-500.0,0.00021917,2]
[329614278,1718507463016,-632.82,0.00021917,2]
[329614279,1718507463027,-500.0,0.00021917,2]
[329614280,1718507463050,-500.0,0.00021917,2]
[329614281,1718507463068,-500.0,0.00021917,2]
[329614282,1718507463096,-656.09,0.00021917,2]
[329614283,1718507463136,-722.36,0.00021917,2]
[329614284,1718507463152,-500.0,0.00021917,2]
[329614285,1718507463169,-500.0,0.00021917,2]
[329614286,1718507463181,-674.73,0.00021917,2]
[329614287,1718507463194,-500.0,0.00021917,2]
[329614288,1718507463206,-500.0,0.00021917,2]
[329614289,1718507463221,-500.0,0.00021917,2]
[329614290,1718507463243,-766.11,0.00021917,2]
[329614291,1718507463288,-500.0,0.00021917,2]
[329614292,1718507463347,-500.0,0.00021917,2]
[329614293,1718507463372,-2445.25,0.00021917,2]
[329614294,1718507463420,-465.03227695,0.00021917,2]
[329614295,1718507463506,-34.96772305,0.00021917,2]
[329614296,1718507463518,-276.84507983,0.00021917,2]
[329614297,1718507464208,-748.30492017,0.00021917,2]
[329614298,1718507464219,-788.45,0.00021917,2]
[329614299,1718507464234,-500.0,0.00021917,2]
[329614300,1718507464253,-500.0,0.00021917,2]
[329614301,1718507464283,-725.23,0.00021917,2]
[329614302,1718507464324,-1641.61,0.00021917,2]
[329614303,1718507464346,-500.0,0.00021917,2]
[329614304,1718507464364,-500.0,0.00021917,2]
[329614305,1718507464380,-783.74,0.00021917,2]
[329614306,1718507464395,-500.0,0.00021917,2]
[329614307,1718507464428,-994.34,0.00021917,2]
[329614308,1718507464442,-5426.1,0.00021917,2]
[329614309,1718507464459,-2850.27,0.00021917,2]
[329614310,1718507464493,-1092.55,0.00021917,2]
[329614311,1718507464524,-500.0,0.00021917,2]
[329614312,1718507464537,-500.0,0.00021917,2]
[329614313,1718507464549,-500.0,0.00021917,2]
[329614314,1718507464567,-713.28,0.00021917,2]
[329614315,1718507464586,-152.49130188,0.00021917,2]
[329614316,1718507464642,-500.0,0.00021917,2]
[329614317,1718507464668,-500.0,0.00021917,2]
[329614318,1718507464685,-500.0,0.00021917,2]
[329614319,1718507464698,-500.0,0.00021917,2]
[329614320,1718507464712,-1081.54,0.00021917,2]
[329614321,1718507464737,-995.75,0.00021917,2]
[329614322,1718507464750,-3235.03,0.00021917,2]
[329614323,1718507464762,-500.0,0.00021917,2]
[329614324,1718507464780,-500.0,0.00021917,2]
[329614325,1718507464793,-1857.78,0.00021917,2]
[329614326,1718507464820,-500.0,0.00021917,2]
[329614327,1718507464841,-500.0,0.00021917,2]
[329614328,1718507464855,-901.48,0.00021917,2]
[329614329,1718507464889,-500.0,0.00021917,2]
[329614330,1718507464902,-500.0,0.00021917,2]
[329614331,1718507464923,-500.0,0.00021917,2]
[329614332,1718507464936,-500.0,0.00021917,2]
[329614333,1718507464947,-500.0,0.00021917,7]
[329614334,1718507464982,-500.0,0.00021917,2]
[329614335,1718507464997,-500.0,0.00021917,2]
[329614336,1718507465025,-500.0,0.00021917,2]
[329614337,1718507465037,-500.0,0.00021917,2]
[329614338,1718507465064,-500.0,0.00021917,2]
[329614339,1718507465088,-834.18,0.00021917,2]
[329614340,1718507465101,-914.25,0.00021917,2]
[329614341,1718507465111,-538.43793594,0.00021917,2]
[329614342,1718507465122,-500.0,0.00021917,2]
[329614343,1718507465133,-500.0,0.00021917,2]
[329614344,1718507465145,-3430.72,0.00021917,2]
[329614345,1718507465156,-500.0,0.00021917,2]
[329614346,1718507465173,-500.0,0.00021917,2]
[329614347,1718507465185,-500.0,0.00021917,2]
[329614348,1718507465198,-500.0,0.00021917,2]
[329614349,1718507465215,-562.27,0.00021917,2]
[329614350,1718507465226,-500.0,0.00021917,2]
[329614351,1718507465250,-500.0,0.00021917,2]
[329614352,1718507465263,-582.46,0.00021917,2]
[329614353,1718507465296,-1007.04,0.00021917,2]
[329614354,1718507465308,-661.55,0.00021917,2]
[329614355,1718507465333,-500.0,0.00021917,2]
[329614356,1718507465345,-940.65,0.00021917,2]
[329614357,1718507465365,-500.0,0.00021917,2]
[329614358,1718507465382,-1171.01,0.00021917,2]
[329614359,1718507465396,-500.0,0.00021917,2]
[329614360,1718507465425,-500.0,0.00021917,2]
[329614361,1718507465441,-509.11108674,0.00021917,2]
[329614362,1718507465468,-1914.99,0.00021917,2]
[329614363,1718507465481,-1816.05,0.00021917,2]
[329614364,1718507465505,-500.0,0.00021917,2]
[329614365,1718507465517,-1019.49,0.00021917,2]
[329614366,1718507465552,-653.6,0.00021917,2]
[329614367,1718507465584,-500.0,0.00021917,2]
[329614368,1718507465599,-500.0,0.00021917,2]
[329614369,1718507465614,-500.0,0.00021917,2]
[329614370,1718507465628,-678.58,0.00021917,2]
[329614371,1718507465649,-726.02,0.00021917,2]
[329614372,1718507465670,-500.0,0.00021917,2]
[329614373,1718507465698,-500.0,0.00021917,2]
[329614374,1718507465719,-500.0,0.00021917,2]
[329614375,1718507465736,-500.0,0.00021917,2]
[329614376,1718507465747,-1735.0,0.00021917,2]
[329614377,1718507465792,-10007.38,0.00021917,2]
[329614378,1718507465821,-500.0,0.00021917,2]
[329614379,1718507465833,-3224.45,0.00021917,2]
[329614380,1718507465848,-821.13,0.00021917,2]
[329614381,1718507465861,-540.01,0.00021917,2]
[329614382,1718507465874,-500.0,0.00021917,2]
[329614383,1718507465887,-500.0,0.00021917,2]
[329614384,1718507465927,-151.0,0.00021917,2]
[329614385,1718507465939,-291.65271152,0.00021917,2]
[329614386,1718507465950,-872.2,0.00021917,2]
[329614387,1718507465965,-500.0,0.00021917,2]
[329614388,1718507465984,-500.0,0.00021917,2]
[329614389,1718507466008,-742.97,0.00021917,2]